fUST/lending_fUST_20260329
["ID","MTS","AMOUNT","RATE_DAILY","PERIOD"]
[419030375,1774787433266,-1601.91,0.00017536,2]
[419030377,1774787433275,-642.04,0.00017536,2]
[419030379,1774787433285,-489.68605452,0.00017536,2]
[419030648,1774787438571,-1699.12394548,0.00017536,2]
[419030650,1774787438582,-764.76,0.00017536,2]
[419030652,1774787438592,-155.66933678,0.00017536,2]
[419030654,1774787438601,-500.0,0.00017536,2]
[419030656,1774787438611,-512.26,0.00017536,2]
[419030659,1774787438622,-500.0,0.00017536,2]
[419030661,1774787438632,-500.0,0.00017536,2]
[419030663,1774787438643,-500.0,0.00017536,2]
[419030665,1774787438652,-500.0,0.00017536,2]
[419030667,1774787438662,-500.0,0.00017536,2]
[419030669,1774787438672,-571.25269999,0.00017536,2]
[419030671,1774787438681,-5063.64117987,0.00017537,2]
[419030674,1774787438691,-599.60298507,0.0001759,2]
[419030676,1774787438700,-219.45,0.00017604,3]
[419030678,1774787438710,-438.89,0.00017614,3]
[419030679,1774787438720,-658.36,0.00017614,3]
[419030681,1774787438729,-2909.64270235,0.00017625,2]
[419030683,1774787438739,-621.78829552,0.00017645,2]
[419030685,1774787438749,-500.0,0.00017699,2]
[419030687,1774787438759,-2519609.1744127,0.000177,2]
[419030689,1774787438771,-117368.60083956,0.000177,2]
[419030691,1774787438782,-21094.7471359,0.000177,2]
[419030693,1774787438794,-60020.6178744,0.000177,2]
[419031034,1774787518490,-176.0,0.00011888,2]
[419031035,1774787518519,-176.0,0.00012888,2]
[419031036,1774787518548,-55.54085902,0.00013698,2]
[419031056,1774788632549,-253.08869634,0.00012,2]
[419031061,1774788632610,-993.75000002,0.00012,2]
[419031063,1774788632623,-528.55735956,0.00012,2]
[419031065,1774788632632,-37.45767131,0.00013365,14]
[419031066,1774788632644,-168.99856021,0.00013365,14]
[419031068,1774788632653,-81.52783979,0.00013698,2]
[419031423,1774788638707,-180.47216021,0.00013698,2]
[419031424,1774788638722,-92.03698903,0.00013698,2]
[419031425,1774788638742,-1443.13301097,0.00013698,2]
[419031426,1774788638758,-615.29,0.00013698,2]
[419031427,1774788638771,-2097.61,0.00013698,2]
[419031428,1774788638784,-732.9,0.00013698,2]
[419031429,1774788638799,-500.0,0.00013698,2]
[419031430,1774788638813,-500.0,0.00013698,2]
[419031431,1774788638828,-500.0,0.00013698,2]
[419031432,1774788638842,-2973.9802365,0.00013699,2]
[419031433,1774788638857,-1000.0,0.00013699,2]
[419031434,1774788638871,-252.24880101,0.00014056,2]
[419031436,1774788638884,-151.0,0.00014056,2]
[419031437,1774788638898,-151.0,0.00014056,2]
[419031438,1774788638911,-151.0,0.00014056,2]
[419031439,1774788638924,-151.0,0.00014056,2]
[419031440,1774788638935,-151.0,0.00014056,2]
[419031441,1774788638949,-151.0,0.00014056,2]
[419031442,1774788638962,-151.0,0.00014056,2]
[419031443,1774788638976,-151.0,0.00014056,2]
[419031444,1774788638992,-151.0,0.00014056,2]
[419031445,1774788639004,-151.0,0.00014056,2]
[419031446,1774788639019,-151.0,0.00014056,2]
[419031447,1774788639035,-151.0,0.00014056,2]
[419031448,1774788639050,-151.0,0.00014056,2]
[419031449,1774788639061,-151.0,0.00014056,2]
[419031450,1774788639073,-151.0,0.00014056,2]
[419031451,1774788639084,-151.0,0.00014056,2]
[419031452,1774788639099,-151.0,0.00014056,2]
[419031453,1774788639112,-151.0,0.00014056,2]
[419031454,1774788639124,-151.0,0.00014056,2]
[419031455,1774788639138,-153.63993183,0.00014056,2]
[419031456,1774788639153,-500.0,0.00014064,2]
[419031457,1774788639167,-558.73829536,0.00014064,2]
[419031458,1774788639181,-1287.56,0.00014064,2]
[419031459,1774788639194,-1287.56,0.00014064,2]
[419031460,1774788639206,-1287.56,0.00014064,2]
[419031461,1774788639218,-1447.35,0.00014064,2]
[419031462,1774788639230,-1447.35,0.00014064,2]
[419031463,1774788639244,-1447.35,0.00014064,2]
[419031464,1774788639257,-500.0,0.00014064,2]
[419031465,1774788639269,-500.0,0.00014064,2]
[419031466,1774788639280,-500.0,0.00014064,2]
[419031467,1774788639293,-500.0,0.00014064,2]
[419031468,1774788639304,-500.0,0.00014064,2]
[419031469,1774788639316,-500.0,0.00014064,2]
[419031470,1774788639328,-2013.73,0.00014064,2]
[419031471,1774788639340,-2013.73,0.00014064,2]
[419031472,1774788639353,-2013.73,0.00014064,2]
[419031473,1774788639365,-65000.0,0.00014064,2]
[419031474,1774788639377,-500.0,0.00014064,2]
[419031475,1774788639389,-500.0,0.00014338,2]
[419031476,1774788639401,-500.0,0.00014612,2]
[419031477,1774788639413,-1287.56,0.0001473,2]
[419031478,1774788639424,-1447.35,0.0001473,2]
[419031479,1774788639437,-500.0,0.0001473,2]
[419031480,1774788639448,-500.0,0.0001473,2]
[419031481,1774788639460,-2013.73,0.0001473,2]
[419031482,1774788639472,-652.38,0.00014731,2]
[419031483,1774788639484,-500.0,0.00014731,2]
[419031484,1774788639497,-500.0,0.00014731,2]
[419031485,1774788639509,-500.0,0.00014731,2]
[419031486,1774788639520,-15380.3736,0.00014732,2]
[419031487,1774788639532,-500.0,0.00014886,2]
[419031488,1774788639545,-500.0,0.0001516,2]
[419031489,1774788639557,-652.38,0.00015308,2]
[419031490,1774788639569,-500.0,0.00015308,2]
[419031491,1774788639581,-500.0,0.00015308,2]
[419031492,1774788639593,-1287.56,0.00015308,2]
[419031493,1774788639605,-500.0,0.00015308,2]
[419031494,1774788639617,-1447.35,0.00015308,2]
[419031495,1774788639629,-341.59530155,0.00015308,2]
[419031496,1774788639642,-500.0,0.00015308,2]
[419031497,1774788639655,-2013.73,0.00015308,2]
[419031498,1774788639667,-1535.17,0.00015309,2]
[419031499,1774788639679,-615.29,0.00015309,2]
[419031500,1774788639691,-2097.61,0.00015309,2]
[419031501,1774788639704,-732.9,0.00015309,2]
[419031502,1774788639717,-500.0,0.00015309,2]
[419031503,1774788639729,-500.0,0.00015309,2]
[419031504,1774788639741,-500.0,0.00015309,2]
[419031505,1774788639753,-1287.56,0.00015327,2]
[419031506,1774788639763,-1447.35,0.00015327,2]
[419031509,1774788639866,-500.0,0.00015327,2]
[419031512,1774788639917,-2013.73,0.00015327,2]
[419031514,1774788639928,-16542.9332965,0.00015328,2]
[419031516,1774788639937,-500.0,0.00015434,2]
[419031518,1774788639948,-1500.0,0.00015479,2]
[419031520,1774788639958,-1555.5,0.00015534,2]
[419031522,1774788639967,-1613.0535,0.00015589,2]
[419031523,1774788639977,-5000.0,0.0001564,2]
[419031524,1774788639987,-1672.7364795,0.00015644,2]
[419031525,1774788639997,-210.74,0.00015697,2]
[419031526,1774788640007,-1734.62772924,0.00015699,2]
[419031527,1774788640017,-500.0,0.00015708,2]
[419031528,1774788640027,-1798.80895522,0.00015754,2]
[419031530,1774788640036,-652.38,0.00015776,2]
[419031532,1774788640046,-500.0,0.00015776,2]
[419031533,1774788640056,-500.0,0.00015776,2]
[419031534,1774788640066,-500.0,0.00015776,2]
[419031535,1774788640076,-3658.508675,0.00015777,2]
[419031536,1774788640086,-177.139616,0.00015798,2]
[419031537,1774788640095,-1865.36488657,0.00015809,2]
[419031538,1774788640105,-1934.38338737,0.00015864,2]
[419031539,1774788640115,-2005.9555727,0.00015919,2]
[419031540,1774788640125,-858.78812829,0.00015974,2]
[419031541,1774788640135,-500.0,0.00015982,2]
[419031542,1774788640145,-500.0,0.00016256,2]
[419031543,1774788640155,-173.544161,0.00016308,2]
[419031544,1774788640165,-500.0,0.0001653,2]
[419031545,1774788640175,-642.0,0.00016758,2]
[419031546,1774788640184,-1869.994,0.00016758,2]
[419031547,1774788640193,-883.516,0.00016758,2]
[419031548,1774788640203,-150.442,0.00016758,2]
[419031549,1774788640214,-161.89797231,0.000168,2]
[419031550,1774788640225,-151.0,0.000168,2]
[419031551,1774788640236,-500.0,0.00016804,2]
[419031552,1774788640245,-1287.56,0.00016899,2]
[419031553,1774788640255,-1447.35,0.00016899,2]
[419031554,1774788640265,-500.0,0.00016899,2]
[419031555,1774788640275,-2013.73,0.00016899,2]
[419031556,1774788640284,-157.0,0.000169,2]
[419031557,1774788640294,-157.0,0.000169,2]
[419031558,1774788640303,-157.0,0.000169,3]
[419031559,1774788640313,-157.0,0.000169,3]
[419031560,1774788640323,-500.0,0.00017078,2]
[419031561,1774788640333,-151250.53557544,0.000171,2]
[419031562,1774788640346,-12474.64630005,0.000171,2]
[419031563,1774788640359,-2870.50814605,0.000171,2]
[419031564,1774788640369,-3762.27447946,0.000171,2]
[419031565,1774788640381,-64099.77652566,0.000171,2]
[419031566,1774788640392,-334.92513388,0.000171,2]
[419031567,1774788640404,-706.19557202,0.000171,2]
[419031568,1774788640416,-1341.25548051,0.000171,2]
[419031569,1774788640439,-2505.41777256,0.000171,2]
[419031570,1774788640451,-167041.63214242,0.000171,2]
[419031571,1774788640461,-173.544161,0.00017167,2]
[419031572,1774788640471,-157.0,0.000172,3]
[419031573,1774788640481,-157.0,0.000172,3]
[419031574,1774788640491,-151.0,0.000172,2]
[419031575,1774788640500,-151.0,0.00017206,2]
[419031576,1774788640510,-500.0,0.0001722,5]
[419031577,1774788640520,-151.0,0.000173,2]
[419031578,1774788640530,-500.0,0.00017334,2]
[419031579,1774788640558,-605.40616509,0.00017334,2]
[419031580,1774788640568,-500.0,0.00017352,2]
[419031581,1774788640577,-219.44,0.00017414,3]
[419031582,1774788640586,-658.36,0.00017414,3]
[419031583,1774788640595,-500.0,0.00017424,2]
[419031584,1774788640604,-500.0,0.00017424,2]
[419031585,1774788640614,-1287.56,0.00017433,2]
[419031586,1774788640624,-1447.35,0.00017433,2]
[419031587,1774788640634,-500.0,0.00017433,2]
[419031588,1774788640643,-2013.73,0.00017433,2]
[419031589,1774788640653,-652.38,0.00017434,2]
[419031590,1774788640663,-652.38,0.00017434,2]
[419031591,1774788640672,-652.38,0.00017434,2]
[419031592,1774788640681,-500.0,0.00017434,2]
[419031593,1774788640691,-500.0,0.00017434,2]
[419031594,1774788640700,-500.0,0.00017434,2]
[419031595,1774788640710,-500.0,0.00017434,2]
[419031596,1774788640720,-500.0,0.00017434,2]
[419031597,1774788640730,-500.0,0.00017434,2]
[419031598,1774788640739,-1287.56,0.00017434,2]
[419031599,1774788640749,-1287.56,0.00017434,2]
[419031600,1774788640759,-500.0,0.00017434,2]
[419031601,1774788640769,-500.0,0.00017434,2]
[419031602,1774788640779,-500.0,0.00017434,2]
[419031603,1774788640788,-1447.35,0.00017434,2]
[419031604,1774788640798,-1447.35,0.00017434,2]
[419031605,1774788640808,-500.0,0.00017434,2]
[419031606,1774788640817,-500.0,0.00017434,2]
[419031607,1774788640827,-2013.73,0.00017434,2]
[419031608,1774788640837,-2013.73,0.00017434,2]
[419031609,1774788640847,-1535.17,0.00017435,2]
[419031610,1774788640857,-1535.17,0.00017435,2]
[419031611,1774788640866,-1535.17,0.00017435,2]
[419031612,1774788640876,-1535.17,0.00017435,2]
[419031613,1774788640887,-615.29,0.00017435,2]
[419031614,1774788640897,-615.29,0.00017435,2]
[419031615,1774788640906,-615.29,0.00017435,2]
[419031616,1774788640915,-615.29,0.00017435,2]
[419031617,1774788640925,-2097.61,0.00017435,2]
[419031618,1774788640935,-2097.61,0.00017435,2]
[419031619,1774788640944,-2097.61,0.00017435,2]
[419031620,1774788640953,-2097.61,0.00017435,2]
[419031621,1774788640963,-732.9,0.00017435,2]
[419031622,1774788640972,-732.9,0.00017435,2]
[419031623,1774788640982,-732.9,0.00017435,2]
[419031624,1774788640991,-732.9,0.00017435,2]
[419031625,1774788641001,-500.0,0.00017435,2]
[419031626,1774788641011,-500.0,0.00017435,2]
[419031627,1774788641020,-500.0,0.00017435,2]
[419031628,1774788641030,-500.0,0.00017435,2]
[419031629,1774788641040,-500.0,0.00017435,2]
[419031630,1774788641050,-500.0,0.00017435,2]
[419031631,1774788641060,-500.0,0.00017435,2]
[419031632,1774788641070,-500.0,0.00017435,2]
[419031633,1774788641080,-500.0,0.00017435,2]
[419031634,1774788641089,-500.0,0.00017435,2]
[419031635,1774788641099,-151.0,0.000175,2]
[419031636,1774788641109,-500.0,0.00017534,2]
[419031637,1774788641119,-500.0,0.00017534,2]
[419031638,1774788641129,-1287.56,0.00017534,2]
[419031639,1774788641139,-1447.35,0.00017534,2]
[419031640,1774788641149,-500.0,0.00017534,2]
[419031641,1774788641159,-2013.73,0.00017534,2]
[419031642,1774788641168,-1535.17,0.00017535,2]
[419031643,1774788641178,-615.29,0.00017535,2]
[419031644,1774788641188,-2097.61,0.00017535,2]
[419031645,1774788641198,-732.9,0.00017535,2]
[419031646,1774788641208,-500.0,0.00017535,2]
[419031647,1774788641217,-500.0,0.00017535,2]
[419031648,1774788641227,-500.0,0.00017535,2]
[419031649,1774788641237,-699.91207247,0.00017537,2]
[419031650,1774788641247,-352.60926585,0.00017537,2]
[419031651,1774788641256,-1287.56,0.00017572,2]
[419031652,1774788641267,-1447.35,0.00017572,2]
[419031653,1774788641276,-500.0,0.00017572,2]
[419031654,1774788641287,-2013.73,0.00017572,2]
[419031655,1774788641298,-500.0,0.00017573,2]
[419031657,1774788641308,-500.0,0.00017573,2]
[419031659,1774788641318,-500.0,0.00017573,2]
[419031661,1774788641328,-500.0,0.00017573,2]
[419031663,1774788641338,-500.0,0.00017573,2]
[419031665,1774788641348,-222.32244688,0.00017573,2]
[419031667,1774788641358,-500.0,0.00017573,2]
[419031669,1774788641369,-3660.87,0.00017595,2]
[419031671,1774788641378,-1287.56,0.00017597,2]
[419031673,1774788641388,-1447.35,0.00017597,2]
[419031676,1774788641398,-500.0,0.00017597,2]
[419031678,1774788641408,-2013.73,0.00017597,2]
[419031680,1774788641418,-185.11400955,0.00017598,2]
[419031682,1774788641427,-200.0,0.00017598,2]
[419031684,1774788641437,-228.59283659,0.00017598,2]
[419031686,1774788641447,-652.38,0.00017598,2]
[419031688,1774788641457,-652.38,0.00017598,2]
[419031690,1774788641466,-652.38,0.00017598,2]
[419031692,1774788641476,-652.38,0.00017598,2]
[419031694,1774788641485,-652.38,0.00017598,2]
[419031696,1774788641495,-652.38,0.00017598,2]
[419031698,1774788641504,-652.38,0.00017598,2]
[419031700,1774788641514,-652.38,0.00017598,2]
[419031702,1774788641523,-652.38,0.00017598,2]
[419031704,1774788641533,-652.38,0.00017598,2]
[419031706,1774788641543,-652.38,0.00017598,2]
[419031708,1774788641553,-652.38,0.00017598,2]
[419031710,1774788641563,-652.38,0.00017598,2]
[419031712,1774788641573,-652.38,0.00017598,2]
[419031714,1774788641583,-652.38,0.00017598,2]
[419031716,1774788641593,-652.38,0.00017598,2]
[419031718,1774788641603,-652.38,0.00017598,2]
[419031720,1774788641613,-652.59742177,0.00017598,2]
[419031722,1774788641623,-500.0,0.00017598,2]
[419031724,1774788641633,-500.0,0.00017598,2]
[419031726,1774788641642,-500.0,0.00017598,2]
[419031728,1774788641652,-500.0,0.00017598,2]
[419031730,1774788641662,-500.0,0.00017598,2]
[419031732,1774788641671,-250.91022724,0.00017598,2]
[419031734,1774788641681,-500.0,0.00017598,2]
[419031736,1774788641692,-500.0,0.00017598,2]
[419031738,1774788641702,-500.0,0.00017598,2]
[419031740,1774788641712,-500.0,0.00017598,2]
[419031741,1774788641722,-500.0,0.00017598,2]
[419031742,1774788641732,-500.0,0.00017598,2]
[419031743,1774788641742,-500.0,0.00017598,2]
[419031744,1774788641752,-500.0,0.00017598,2]
[419031745,1774788641762,-500.0,0.00017598,2]
[419031746,1774788641772,-500.0,0.00017598,2]
[419031747,1774788641782,-500.0,0.00017598,2]
[419031748,1774788641792,-500.0,0.00017598,2]
[419031749,1774788641801,-500.0,0.00017598,2]
[419031750,1774788641811,-500.0,0.00017598,2]
[419031751,1774788641822,-500.0,0.00017598,2]
[419031752,1774788641832,-500.0,0.00017598,2]
[419031753,1774788641842,-500.0,0.00017598,2]
[419031754,1774788641852,-282.14495349,0.00017598,2]
[419031755,1774788641862,-500.0,0.00017598,2]
[419031756,1774788641872,-500.0,0.00017598,2]
[419031757,1774788641882,-500.0,0.00017598,2]
[419031758,1774788641892,-500.0,0.00017598,2]
[419031759,1774788641902,-500.0,0.00017598,2]
[419031760,1774788641912,-500.0,0.00017598,2]
[419031761,1774788641922,-500.0,0.00017598,2]
[419031762,1774788641932,-500.0,0.00017598,2]
[419031763,1774788641942,-500.0,0.00017598,2]
[419031764,1774788641952,-500.0,0.00017598,2]
[419031765,1774788641962,-500.0,0.00017598,2]
[419031766,1774788641971,-500.0,0.00017598,2]
[419031767,1774788641981,-500.0,0.00017598,2]
[419031768,1774788641991,-303.79987895,0.00017598,2]
[419031769,1774788642088,-157.0,0.000176,4]
[419031770,1774788642098,-157.0,0.000176,4]
[419031771,1774788642109,-151.0,0.000176,2]
[419031772,1774788642119,-1535.17,0.00017613,2]
[419031773,1774788642129,-615.29,0.00017613,2]
[419031774,1774788642139,-2097.61,0.00017613,2]
[419031775,1774788642150,-732.9,0.00017613,2]
[419031776,1774788642160,-500.0,0.00017613,2]
[419031777,1774788642170,-500.0,0.00017626,2]
[419031778,1774788642180,-711.2,0.00017641,2]
[419031779,1774788642190,-159.22802193,0.00017673,2]
[419031780,1774788642199,-500.0,0.00017673,2]
[419031781,1774788642210,-500.0,0.00017673,2]
[419031782,1774788642220,-500.0,0.00017673,2]
[419031783,1774788642230,-500.0,0.00017673,2]
[419031784,1774788642238,-500.0,0.00017673,2]
[419031785,1774788642248,-500.0,0.00017673,2]
[419031786,1774788642258,-500.0,0.00017673,2]
[419031787,1774788642268,-500.0,0.00017673,2]
[419031788,1774788642278,-500.0,0.00017673,2]
[419031789,1774788642288,-500.0,0.00017673,2]
[419031790,1774788642299,-500.0,0.00017673,2]
[419031791,1774788642309,-500.0,0.00017673,2]
[419031792,1774788642318,-200.0,0.00017698,2]
[419031793,1774788642327,-1287.56,0.00017698,2]
[419031794,1774788642337,-1287.56,0.00017698,2]
[419031795,1774788642347,-1287.56,0.00017698,2]
[419031796,1774788642356,-1447.35,0.00017698,2]
[419031797,1774788642366,-1447.35,0.00017698,2]
[419031798,1774788642375,-1447.35,0.00017698,2]
[419031799,1774788642385,-500.0,0.00017698,2]
[419031800,1774788642397,-500.0,0.00017698,2]
[419031801,1774788642407,-500.0,0.00017698,2]
[419031802,1774788642416,-2013.73,0.00017698,2]
[419031803,1774788642426,-2013.73,0.00017698,2]
[419031804,1774788642436,-2013.73,0.00017698,2]
[419031805,1774788642447,-500.0,0.00017699,2]
[419031806,1774788642456,-500.0,0.00017699,2]
[419031807,1774788642466,-500.0,0.00017699,2]
[419031808,1774788642476,-500.0,0.00017699,2]
[419031809,1774788642486,-500.0,0.00017699,2]
[419031810,1774788642496,-500.0,0.00017699,2]
[419031811,1774788642507,-500.0,0.00017699,2]
[419031812,1774788642518,-500.0,0.00017699,2]
[419031813,1774788642528,-500.0,0.00017699,2]
[419031814,1774788642538,-381.59564519,0.00017699,2]
[419031815,1774788642548,-500.0,0.00017699,2]
[419031816,1774788642558,-500.0,0.00017699,2]
[419031817,1774788642568,-500.0,0.00017699,2]
[419031818,1774788642578,-500.0,0.00017699,2]
[419031819,1774788642588,-248.91951328,0.00017699,2]
[419031820,1774788642599,-151.0,0.000177,2]
[419031821,1774788642609,-1000.0,0.000177,2]
[419031822,1774788642618,-151.0,0.000177,2]
[419031823,1774788642628,-211.6748917,0.000177,2]
[419031824,1774788642638,-200.862,0.00017767,2]
[419031825,1774788642648,-1287.56,0.00017772,2]
[419031826,1774788642658,-1447.35,0.00017772,2]
[419031827,1774788642668,-500.0,0.00017772,2]
[419031828,1774788642677,-2013.73,0.00017772,2]
[419031829,1774788642687,-500.0,0.00017773,2]
[419031830,1774788642696,-500.0,0.00017773,2]
[419031831,1774788642706,-500.0,0.00017773,2]
[419031832,1774788642716,-500.0,0.00017773,2]
[419031833,1774788642726,-166.70197431,0.00017773,2]
[419031834,1774788642735,-500.0,0.00017773,2]
[419031835,1774788642745,-500.0,0.00017773,2]
[419031836,1774788642755,-594.07208983,0.00017773,2]
[419031837,1774788642765,-500.0,0.00017773,2]
[419031838,1774788642775,-500.0,0.00017773,2]
[419031839,1774788642785,-571.12357806,0.00017773,2]
[419031840,1774788642794,-161.29153229,0.00017773,2]
[419031841,1774788642803,-500.0,0.00017773,2]
[419031842,1774788642813,-161.74139045,0.00017773,2]
[419031843,1774788642823,-500.0,0.00017773,2]
[419031844,1774788642833,-500.0,0.00017773,2]
[419031845,1774788642843,-500.0,0.00017773,2]
[419031846,1774788642853,-258.27383658,0.00017773,2]
[419031847,1774788642863,-500.0,0.00017773,2]
[419031848,1774788642872,-500.0,0.00017773,2]
[419031849,1774788642883,-500.0,0.00017773,2]
[419031850,1774788642893,-500.0,0.00017773,2]
[419031851,1774788642903,-498.59493273,0.00017773,2]
[419031852,1774788642913,-500.0,0.00017773,2]
[419031853,1774788642924,-528.82851064,0.00017773,2]
[419031854,1774788642934,-500.0,0.00017773,2]
[419031855,1774788642945,-500.0,0.00017773,2]
[419031856,1774788642954,-310.61775337,0.00017773,2]
[419031857,1774788642964,-500.0,0.00017773,2]
[419031858,1774788642973,-523.96071089,0.00017773,2]
[419031859,1774788642983,-165.2950716,0.00017773,2]
[419031860,1774788642992,-500.0,0.00017773,2]
[419031861,1774788643002,-167.81126115,0.00017773,2]
[419031862,1774788643012,-160.96506004,0.00017773,2]
[419031863,1774788643021,-500.0,0.00017773,2]
[419031864,1774788643031,-500.0,0.00017773,2]
[419031865,1774788643042,-500.0,0.00017773,2]
[419031866,1774788643052,-159.97613663,0.00017773,2]
[419031867,1774788643062,-540.20266757,0.00017773,2]
[419031868,1774788643072,-161.23888,0.00017773,2]
[419031869,1774788643082,-306.91263719,0.00017773,2]
[419031870,1774788643092,-500.0,0.00017773,2]
[419031871,1774788643103,-500.0,0.00017773,2]
[419031872,1774788643113,-500.0,0.00017773,2]
[419031873,1774788643123,-500.0,0.00017773,2]
[419031874,1774788643133,-500.0,0.00017773,2]
[419031875,1774788643143,-500.0,0.00017773,2]
[419031876,1774788643154,-500.0,0.00017773,2]
[419031877,1774788643164,-500.0,0.00017773,2]
[419031878,1774788643174,-500.0,0.00017773,2]
[419031879,1774788643184,-245.42352017,0.00017773,2]
[419031880,1774788643194,-1287.56,0.00017798,2]
[419031881,1774788643204,-1447.35,0.00017798,2]
[419031882,1774788643214,-500.0,0.00017798,2]
[419031883,1774788643224,-2013.73,0.00017798,2]
[419031884,1774788643234,-1535.17,0.00017799,2]
[419031885,1774788643245,-1535.17,0.00017799,2]
[419031886,1774788643255,-1535.17,0.00017799,2]
[419031887,1774788643265,-615.29,0.00017799,2]
[419031888,1774788643275,-615.29,0.00017799,2]
[419031890,1774788643286,-615.29,0.00017799,2]
[419031893,1774788643296,-2097.61,0.00017799,2]
[419031896,1774788643307,-2097.61,0.00017799,2]
[419031898,1774788643317,-2097.61,0.00017799,2]
[419031900,1774788643327,-732.9,0.00017799,2]
[419031902,1774788643338,-732.9,0.00017799,2]
[419031904,1774788643347,-732.9,0.00017799,2]
[419031906,1774788643357,-500.0,0.00017799,2]
[419031908,1774788643367,-500.0,0.00017799,2]
[419031910,1774788643378,-500.0,0.00017799,2]
[419031911,1774788643388,-1287.56,0.00017799,2]
[419031912,1774788643398,-1287.56,0.00017799,2]
[419031913,1774788643409,-1287.56,0.00017799,2]
[419031914,1774788643419,-1287.56,0.00017799,2]
[419031915,1774788643428,-1287.56,0.00017799,2]
[419031916,1774788643438,-1287.61429693,0.00017799,2]
[419031917,1774788643447,-1447.35,0.00017799,2]
[419031918,1774788643457,-1447.35,0.00017799,2]
[419031919,1774788643466,-1447.35,0.00017799,2]
[419031920,1774788643476,-1447.35,0.00017799,2]
[419031921,1774788643486,-1447.35,0.00017799,2]
[419031922,1774788643496,-1447.41,0.00017799,2]
[419031923,1774788643505,-500.0,0.00017799,2]
[419031924,1774788643515,-500.0,0.00017799,2]
[419031925,1774788643526,-500.0,0.00017799,2]
[419031926,1774788643536,-500.0,0.00017799,2]
[419031927,1774788643546,-500.0,0.00017799,2]
[419031928,1774788643555,-388.58963783,0.00017799,2]
[419031929,1774788643565,-2013.73,0.00017799,2]
[419031930,1774788643575,-2013.73,0.00017799,2]
[419031931,1774788643585,-2013.73,0.00017799,2]
[419031932,1774788643595,-2013.73,0.00017799,2]
[419031933,1774788643604,-2013.73,0.00017799,2]
[419031934,1774788643614,-2013.82038789,0.00017799,2]
[419031935,1774788643624,-200.0,0.00017799,2]
[419031936,1774788643634,-250.0,0.000178,2]
[419031937,1774788643643,-250.0,0.000178,2]
[419031938,1774788643653,-250.0,0.000178,2]
[419031939,1774788643663,-250.0,0.000178,2]
[419031940,1774788643673,-250.0,0.000178,2]
[419031942,1774788643683,-537.6845,0.000178,2]
[419031944,1774788643693,-250.0,0.000178,2]
[419031946,1774788643702,-250.0,0.000178,2]
[419031948,1774788643712,-537.6845,0.000178,2]
[419031950,1774788643722,-500.0,0.000178,2]
[419031952,1774788643732,-250.0,0.000178,2]
[419031954,1774788643742,-328.12185086,0.000178,2]
[419031955,1774788643752,-2150.738,0.000178,2]
[419031956,1774788643761,-50000.0,0.000178,2]
[419031957,1774788643771,-151.0,0.000178,2]
[419031958,1774788643781,-151.0,0.000178,2]
[419031959,1774788643791,-677.829436,0.000178,2]
[419031960,1774788643802,-677.829436,0.000178,2]
[419031961,1774788643812,-677.829436,0.000178,2]